[Event "*** Titled Tuesday Blitz"]
[Site "Chess.com"]
[Date "2018.09.04"]
[Round "10"]
[White "Caisachess"]
[Black "aquaticpineapples"]
[Result "1/2-1/2"]
[WhiteElo "2235"]
[BlackElo "2017"]
[TimeControl "180+2"]
[EndTime "15:52:14 PDT"]
[Termination "Game drawn - insufficient material"]

1. e4 {[%clk 0:03:01.9]} 1... d5 {[%clk 0:03:00.3]} 2. exd5 {[%clk 0:03:02.7]}
2... Qxd5 {[%clk 0:03:02.2]} 3. Nc3 {[%clk 0:03:02.6]} 3... Qa5 {[%clk
0:03:02.9]} 4. d4 {[%clk 0:03:02.5]} 4... Nf6 {[%clk 0:03:04]} 5. Nf3 {[%clk
0:03:03.1]} 5... Nc6 {[%clk 0:03:05.2]} 6. Bd2 {[%clk 0:03:02.3]} 6... a6 {[%clk
0:03:05.2]} 7. Bc4 {[%clk 0:02:56]} 7... Qh5 {[%clk 0:03:05.7]} 8. h3 {[%clk
0:02:55.6]} 8... Bg4 {[%clk 0:03:05.1]} 9. Be2 {[%clk 0:02:41.4]} 9... O-O-O
{[%clk 0:02:55.1]} 10. O-O {[%clk 0:02:29.1]} 10... e5 {[%clk 0:02:47.9]} 11.
dxe5 {[%clk 0:02:23.6]} 11... Nxe5 {[%clk 0:02:27.7]} 12. Nxe5 {[%clk
0:02:11.3]} 12... Bxe2 {[%clk 0:02:27.8]} 13. Qxe2 {[%clk 0:02:09.5]} 13... Qxe2
{[%clk 0:02:15]} 14. Nxe2 {[%clk 0:02:10.2]} 14... Rxd2 {[%clk 0:02:16]} 15.
Nxf7 {[%clk 0:02:11]} 15... Rg8 {[%clk 0:01:52.8]} 16. Rad1 {[%clk 0:02:12.1]}
16... Bb4 {[%clk 0:01:36.5]} 17. Rxd2 {[%clk 0:02:11.5]} 17... Bxd2 {[%clk
0:01:37.5]} 18. Rd1 {[%clk 0:02:12.7]} 18... Bb4 {[%clk 0:01:28]} 19. c3 {[%clk
0:02:13.6]} 19... Rf8 {[%clk 0:01:22.2]} 20. Ng5 {[%clk 0:02:08]} 20... Bd6
{[%clk 0:01:20.4]} 21. Ne6 {[%clk 0:02:02.5]} 21... Re8 {[%clk 0:01:13.8]} 22.
N6d4 {[%clk 0:01:58.2]} 22... c5 {[%clk 0:01:01.5]} 23. Nf5 {[%clk 0:01:58.9]}
23... Rxe2 {[%clk 0:00:36.1]} 24. Nxd6+ {[%clk 0:01:59.4]} 24... Kc7 {[%clk
0:00:35.2]} 25. Nf5 {[%clk 0:01:47.8]} 25... g6 {[%clk 0:00:31.3]} 26. Ne7
{[%clk 0:01:40.2]} 26... Rxb2 {[%clk 0:00:30.6]} 27. Nd5+ {[%clk 0:01:39.3]}
27... Nxd5 {[%clk 0:00:31.2]} 28. Rxd5 {[%clk 0:01:41.2]} 28... Rxa2 {[%clk
0:00:29.7]} 29. Rxc5+ {[%clk 0:01:42.3]} 29... Kd6 {[%clk 0:00:27.7]} 30. Rc4
{[%clk 0:01:38.2]} 30... b5 {[%clk 0:00:26.5]} 31. Rc8 {[%clk 0:01:38]} 31...
Rc2 {[%clk 0:00:25]} 32. Ra8 {[%clk 0:01:37.7]} 32... Rxc3 {[%clk 0:00:23.7]}
33. Rxa6+ {[%clk 0:01:38.7]} 33... Kd5 {[%clk 0:00:18.7]} 34. Kf1 {[%clk
0:01:37.1]} 34... b4 {[%clk 0:00:18.1]} 35. Ke2 {[%clk 0:01:36.8]} 35... Kc4
{[%clk 0:00:16]} 36. Kd2 {[%clk 0:01:35.9]} 36... Kb3 {[%clk 0:00:15.3]} 37. Rf6
{[%clk 0:01:32.3]} 37... Kb2 {[%clk 0:00:13.4]} 38. Rf7 {[%clk 0:01:21.5]} 38...
b3 {[%clk 0:00:14.1]} 39. Rxh7 {[%clk 0:01:21.9]} 39... Rc2+ {[%clk 0:00:15]}
40. Ke3 {[%clk 0:01:23.3]} 40... Kb1 {[%clk 0:00:14.8]} 41. Rg7 {[%clk
0:01:22.8]} 41... Rc6 {[%clk 0:00:14.4]} 42. g4 {[%clk 0:01:20]} 42... Kc2
{[%clk 0:00:09.1]} 43. Rb7 {[%clk 0:01:20.4]} 43... b2 {[%clk 0:00:09.5]} 44. h4
{[%clk 0:01:21.4]} 44... b1=Q {[%clk 0:00:06.9]} 45. Rxb1 {[%clk 0:01:21.6]}
45... Kxb1 {[%clk 0:00:08.8]} 46. Kf4 {[%clk 0:01:21]} 46... Kc2 {[%clk
0:00:08.3]} 47. Kg5 {[%clk 0:01:20.4]} 47... Kd3 {[%clk 0:00:08.5]} 48. f4
{[%clk 0:01:21.5]} 48... Ke4 {[%clk 0:00:08.2]} 49. f5 {[%clk 0:01:17.9]} 49...
gxf5 {[%clk 0:00:07.2]} 50. gxf5 {[%clk 0:01:19.3]} 50... Rc5 {[%clk 0:00:06.3]}
51. h5 {[%clk 0:01:20.5]} 51... Rxf5+ {[%clk 0:00:07]} 52. Kg6 {[%clk
0:01:22.4]} 52... Rf1 {[%clk 0:00:04.7]} 53. h6 {[%clk 0:01:22.9]} 53... Rg1+
{[%clk 0:00:05.7]} 54. Kf7 {[%clk 0:01:24]} 54... Kf5 {[%clk 0:00:04.5]} 55. h7
{[%clk 0:01:25.2]} 55... Rh1 {[%clk 0:00:05.6]} 56. Kg7 {[%clk 0:01:26.3]} 56...
Rg1+ {[%clk 0:00:06.1]} 57. Kf7 {[%clk 0:01:27.7]} 57... Rh1 {[%clk 0:00:07.2]}
58. Kg7 {[%clk 0:01:27.5]} 58... Rg1+ {[%clk 0:00:06.3]} 59. Kf7 {[%clk
0:01:28.5]} 59... Rh1 {[%clk 0:00:06.3]} 60. Kg7 {[%clk 0:01:29.7]} 60... Rxh7+
{[%clk 0:00:07.7]} 61. Kxh7 {[%clk 0:01:30.2]} 1/2-1/2

[Event "*** Titled Tuesday Blitz"]
[Site "Chess.com"]
[Date "2018.09.04"]
[Round "10"]
[White "nochewycandy"]
[Black "Blagorod"]
[Result "1-0"]
[WhiteElo "2191"]
[BlackElo "2004"]
[TimeControl "180+2"]
[EndTime "15:52:14 PDT"]
[Termination "nochewycandy won by checkmate"]

1. c4 {[%clk 0:03:01.9]} 1... e5 {[%clk 0:02:59.9]} 2. g3 {[%clk 0:03:03.1]}
2... d6 {[%clk 0:03:01.1]} 3. Bg2 {[%clk 0:03:03.9]} 3... Nc6 {[%clk 0:03:02.1]}
4. Nc3 {[%clk 0:03:03.8]} 4... Be6 {[%clk 0:03:02.7]} 5. d3 {[%clk 0:03:02.3]}
5... Qd7 {[%clk 0:03:03.8]} 6. e4 {[%clk 0:03:00.7]} 6... Be7 {[%clk 0:03:01.9]}
7. Be3 {[%clk 0:02:56.4]} 7... Nf6 {[%clk 0:02:54.8]} 8. f3 {[%clk 0:02:54.4]}
8... h5 {[%clk 0:02:52.5]} 9. h4 {[%clk 0:02:54.4]} 9... Nh7 {[%clk 0:02:36.6]}
10. Nh3 {[%clk 0:02:49.8]} 10... f5 {[%clk 0:02:33.9]} 11. Nd5 {[%clk
0:02:47.3]} 11... fxe4 {[%clk 0:02:24]} 12. dxe4 {[%clk 0:02:49.2]} 12... Rf8
{[%clk 0:02:02.3]} 13. a3 {[%clk 0:02:31.1]} 13... g6 {[%clk 0:01:53.8]} 14. b4
{[%clk 0:02:24.4]} 14... a6 {[%clk 0:01:30.7]} 15. Rc1 {[%clk 0:02:06.4]} 15...
O-O-O {[%clk 0:01:07.3]} 16. b5 {[%clk 0:02:02.1]} 16... Nb8 {[%clk 0:01:06.7]}
17. a4 {[%clk 0:01:39]} 17... Rf7 {[%clk 0:00:47.5]} 18. Qe2 {[%clk 0:01:23.6]}
18... Rdf8 {[%clk 0:00:43.1]} 19. Nf2 {[%clk 0:01:00.9]} 19... Nf6 {[%clk
0:00:21.6]} 20. Nd3 {[%clk 0:00:56.2]} 20... Ne8 {[%clk 0:00:21.6]} 21. N3b4
{[%clk 0:00:50.8]} 21... a5 {[%clk 0:00:20]} 22. Nd3 {[%clk 0:00:49.1]} 22...
Kd8 {[%clk 0:00:21.2]} 23. Qd2 {[%clk 0:00:49.6]} 23... b6 {[%clk 0:00:22]} 24.
Qf2 {[%clk 0:00:44.5]} 24... Bxd5 {[%clk 0:00:21.6]} 25. cxd5 {[%clk 0:00:44.5]}
25... Bf6 {[%clk 0:00:21.6]} 26. Nb2 {[%clk 0:00:43.2]} 26... Ke7 {[%clk
0:00:20.9]} 27. Bh3 {[%clk 0:00:42.7]} 27... Qd8 {[%clk 0:00:21.4]} 28. Nc4
{[%clk 0:00:43.7]} 28... Bg7 {[%clk 0:00:20.9]} 29. Bg2 {[%clk 0:00:40.3]} 29...
Nd7 {[%clk 0:00:16.2]} 30. O-O {[%clk 0:00:38.5]} 30... Nc5 {[%clk 0:00:16.7]}
31. Bxc5 {[%clk 0:00:38.1]} 31... dxc5 {[%clk 0:00:14.7]} 32. Qe3 {[%clk
0:00:34.8]} 32... Nd6 {[%clk 0:00:14.7]} 33. Nd2 {[%clk 0:00:29.7]} 33... Ke8
{[%clk 0:00:13.9]} 34. Qd3 {[%clk 0:00:30.2]} 34... Bf6 {[%clk 0:00:12.7]} 35.
Rce1 {[%clk 0:00:29.5]} 35... g5 {[%clk 0:00:13.4]} 36. hxg5 {[%clk 0:00:27.2]}
36... Bxg5 {[%clk 0:00:12.2]} 37. f4 {[%clk 0:00:28.5]} 37... exf4 {[%clk
0:00:12.3]} 38. e5 {[%clk 0:00:29.9]} 38... Nf5 {[%clk 0:00:10.6]} 39. gxf4
{[%clk 0:00:27.8]} 39... Bh6 {[%clk 0:00:08.8]} 40. Ne4 {[%clk 0:00:21.3]} 40...
Rg8 {[%clk 0:00:07.4]} 41. Nf6+ {[%clk 0:00:21.3]} 41... Rxf6 {[%clk 0:00:06]}
42. exf6+ {[%clk 0:00:22.2]} 42... Kf7 {[%clk 0:00:07.1]} 43. Qxf5 {[%clk
0:00:21.3]} 43... Rxg2+ {[%clk 0:00:06.3]} 44. Kxg2 {[%clk 0:00:21.6]} 44...
Qg8+ {[%clk 0:00:07.8]} 45. Kh1 {[%clk 0:00:22.8]} 45... Qg3 {[%clk 0:00:08.1]}
46. Re7+ {[%clk 0:00:22]} 46... Kg8 {[%clk 0:00:03.7]} 47. Qh7+ {[%clk 0:00:20]}
47... Kf8 {[%clk 0:00:03.8]} 48. Qf7# {[%clk 0:00:21.9]} 1-0

[Event "*** Titled Tuesday Blitz"]
[Site "Chess.com"]
[Date "2018.09.04"]
[Round "10"]
[White "2165149677570"]
[Black "joejan"]
[Result "1-0"]
[WhiteElo "2301"]
[BlackElo "2236"]
[TimeControl "180+2"]
[EndTime "15:52:24 PDT"]
[Termination "2165149677570 won by resignation"]

1. e4 {[%clk 0:02:59.6]} 1... c5 {[%clk 0:02:59.7]} 2. Nf3 {[%clk 0:03:00.8]}
2... d6 {[%clk 0:03:00.7]} 3. Bb5+ {[%clk 0:03:02.3]} 3... Bd7 {[%clk
0:03:00.6]} 4. Bxd7+ {[%clk 0:03:03.6]} 4... Qxd7 {[%clk 0:03:01.7]} 5. c4
{[%clk 0:03:04.6]} 5... Nc6 {[%clk 0:03:03]} 6. Nc3 {[%clk 0:03:05.4]} 6... Nf6
{[%clk 0:03:03.6]} 7. O-O {[%clk 0:03:05.2]} 7... e6 {[%clk 0:03:04.4]} 8. d4
{[%clk 0:03:05.8]} 8... cxd4 {[%clk 0:03:03.5]} 9. Nxd4 {[%clk 0:03:07.7]} 9...
Be7 {[%clk 0:03:03.7]} 10. Be3 {[%clk 0:03:09.2]} 10... O-O {[%clk 0:03:03]} 11.
Qe2 {[%clk 0:03:10.7]} 11... Rac8 {[%clk 0:03:02.1]} 12. Rfd1 {[%clk 0:03:12.1]}
12... Rfe8 {[%clk 0:02:58.6]} 13. Rac1 {[%clk 0:03:12.6]} 13... a6 {[%clk
0:02:48.6]} 14. b3 {[%clk 0:03:10.6]} 14... Qc7 {[%clk 0:02:23.8]} 15. f4 {[%clk
0:03:07.8]} 15... Nxd4 {[%clk 0:02:16.3]} 16. Bxd4 {[%clk 0:03:07.4]} 16... Qc6
{[%clk 0:02:17.8]} 17. g4 {[%clk 0:03:01.9]} 17... Nd7 {[%clk 0:01:53.6]} 18. g5
{[%clk 0:02:54.9]} 18... e5 {[%clk 0:01:48.7]} 19. Be3 {[%clk 0:02:43.1]} 19...
exf4 {[%clk 0:01:49.5]} 20. Bxf4 {[%clk 0:02:43.6]} 20... Ne5 {[%clk 0:01:47.2]}
21. Nd5 {[%clk 0:02:40.7]} 21... Bd8 {[%clk 0:01:44.7]} 22. Qg2 {[%clk
0:02:35.4]} 22... Re6 {[%clk 0:01:37.5]} 23. h4 {[%clk 0:02:28.9]} 23... Ng6
{[%clk 0:01:29.3]} 24. Bg3 {[%clk 0:02:28.6]} 24... Qe8 {[%clk 0:01:27.4]} 25.
Re1 {[%clk 0:02:23.7]} 25... b5 {[%clk 0:01:18.7]} 26. cxb5 {[%clk 0:02:13.1]}
26... Rxc1 {[%clk 0:01:17.8]} 27. Rxc1 {[%clk 0:02:15]} 27... axb5 {[%clk
0:01:16.2]} 28. Rc8 {[%clk 0:02:10.7]} 28... Qd7 {[%clk 0:01:01]} 29. Qc2 {[%clk
0:01:48]} 29... Nf8 {[%clk 0:00:57.3]} 30. Kh2 {[%clk 0:01:32.3]} 30... h6
{[%clk 0:00:56.1]} 31. Nf4 {[%clk 0:01:26.1]} 31... hxg5 {[%clk 0:00:47.8]} 32.
Nxe6 {[%clk 0:01:26]} 32... Nxe6 {[%clk 0:00:48.7]} 33. Qc6 {[%clk 0:01:16.1]}
33... Qe7 {[%clk 0:00:38.1]} 34. Qxd6 {[%clk 0:01:07.5]} 34... Qf6 {[%clk
0:00:37.5]} 35. Qe5 {[%clk 0:00:55.8]} 35... gxh4 {[%clk 0:00:33.1]} 36. Bf4
{[%clk 0:00:39.4]} 36... Qe7 {[%clk 0:00:21.3]} 37. Qd6 {[%clk 0:00:19.5]} 37...
Qf6 {[%clk 0:00:19.6]} 38. Qe5 {[%clk 0:00:15.9]} 38... Qe7 {[%clk 0:00:18.6]}
39. Bg5 {[%clk 0:00:10.3]} 39... f6 {[%clk 0:00:18.7]} 40. Rxd8+ {[%clk
0:00:09.9]} 40... Qxd8 {[%clk 0:00:17.9]} 41. Qxe6+ {[%clk 0:00:11.4]} 41... Kh7
{[%clk 0:00:19.3]} 42. Qf5+ {[%clk 0:00:12.5]} 42... Kg8 {[%clk 0:00:18.6]} 43.
Bxh4 {[%clk 0:00:13.7]} 43... Qd2+ {[%clk 0:00:18.8]} 44. Qf2 {[%clk 0:00:14.5]}
44... Qd6+ {[%clk 0:00:18]} 45. Bg3 {[%clk 0:00:15.3]} 45... Qe6 {[%clk
0:00:19.3]} 46. Qe2 {[%clk 0:00:15.3]} 46... f5 {[%clk 0:00:18.3]} 47. e5 {[%clk
0:00:12.9]} 47... g5 {[%clk 0:00:16]} 48. Qxb5 {[%clk 0:00:11.4]} 48... f4
{[%clk 0:00:16.9]} 49. Qc4 {[%clk 0:00:12.7]} 1-0

[Event "*** Titled Tuesday Blitz"]
[Site "Chess.com"]
[Date "2018.09.04"]
[Round "10"]
[White "Ksenia_Legenko"]
[Black "alpasya2009"]
[Result "0-1"]
[WhiteElo "2043"]
[BlackElo "2442"]
[TimeControl "180+2"]
[EndTime "15:52:37 PDT"]
[Termination "alpasya2009 won by resignation"]

1. d4 {[%clk 0:03:01.9]} 1... d6 {[%clk 0:03:01.5]} 2. Nf3 {[%clk 0:03:02.2]}
2... g6 {[%clk 0:03:01.9]} 3. g3 {[%clk 0:03:03]} 3... Bg7 {[%clk 0:03:03.8]} 4.
Bg2 {[%clk 0:03:04.6]} 4... Nf6 {[%clk 0:03:05.2]} 5. O-O {[%clk 0:03:05.7]}
5... O-O {[%clk 0:03:06.4]} 6. c4 {[%clk 0:03:07.4]} 6... Nbd7 {[%clk 0:03:05]}
7. Nc3 {[%clk 0:03:08.4]} 7... e5 {[%clk 0:03:05.6]} 8. e4 {[%clk 0:03:09.2]}
8... Re8 {[%clk 0:03:06.6]} 9. h3 {[%clk 0:03:10]} 9... exd4 {[%clk 0:03:08]}
10. Nxd4 {[%clk 0:03:10.9]} 10... a6 {[%clk 0:03:09.9]} 11. Be3 {[%clk
0:03:11.2]} 11... Rb8 {[%clk 0:03:11.2]} 12. Re1 {[%clk 0:03:06.2]} 12... Ne5
{[%clk 0:03:12.2]} 13. b3 {[%clk 0:03:06.4]} 13... c5 {[%clk 0:03:13.7]} 14. Nc2
{[%clk 0:02:56.7]} 14... b5 {[%clk 0:03:15.1]} 15. cxb5 {[%clk 0:02:48.6]} 15...
axb5 {[%clk 0:03:17]} 16. Rc1 {[%clk 0:02:49.9]} 16... b4 {[%clk 0:03:16.7]} 17.
Nd5 {[%clk 0:02:46.1]} 17... Nxd5 {[%clk 0:03:17]} 18. Qxd5 {[%clk 0:02:46.9]}
18... Be6 {[%clk 0:03:02.2]} 19. Qd1 {[%clk 0:02:45.3]} 19... Qc8 {[%clk
0:02:59.3]} 20. Kh2 {[%clk 0:02:39.3]} 20... Qa6 {[%clk 0:03:00]} 21. Bf1 {[%clk
0:02:23]} 21... Qxa2 {[%clk 0:02:56.9]} 22. f4 {[%clk 0:02:23.4]} 22... Bxb3
{[%clk 0:02:28]} 23. fxe5 {[%clk 0:02:21.1]} 23... Bxe5 {[%clk 0:02:28.5]} 24.
Re2 {[%clk 0:02:18.3]} 24... Bb2 {[%clk 0:02:18.5]} 25. Rb1 {[%clk 0:02:17.3]}
25... Rxe4 {[%clk 0:02:16.5]} 26. Bg2 {[%clk 0:02:11.1]} 26... Re6 {[%clk
0:02:03.7]} 27. Qe1 {[%clk 0:02:04.1]} 27... Bxc2 {[%clk 0:01:57.3]} 28. Rxc2
{[%clk 0:02:04.1]} 28... Rxe3 {[%clk 0:01:58.2]} 29. Qxe3 {[%clk 0:01:37.8]}
29... Qxb1 {[%clk 0:01:57.8]} 30. Re2 {[%clk 0:01:35.4]} 30... Be5 {[%clk
0:01:51.1]} 31. Bd5 {[%clk 0:01:34.3]} 31... Kg7 {[%clk 0:01:36.1]} 32. Rf2
{[%clk 0:01:29.7]} 32... f6 {[%clk 0:01:35.3]} 33. Qe2 {[%clk 0:01:24.3]} 33...
Rd8 {[%clk 0:01:15.8]} 34. Qb5 {[%clk 0:01:19.2]} 34... Qe1 {[%clk 0:01:02.8]}
35. Qb7+ {[%clk 0:01:15.8]} 35... Kh6 {[%clk 0:01:02.4]} 36. Rg2 {[%clk
0:01:16.9]} 36... Re8 {[%clk 0:00:43.6]} 37. Qf7 {[%clk 0:00:59.2]} 37... b3
{[%clk 0:00:23.7]} 38. Bxb3 {[%clk 0:00:47.3]} 38... Rb8 {[%clk 0:00:24.5]} 39.
Qc4 {[%clk 0:00:40.6]} 39... Qc3 {[%clk 0:00:22.5]} 40. Qh4+ {[%clk 0:00:39.3]}
40... Kg7 {[%clk 0:00:23.4]} 41. Bc2 {[%clk 0:00:34.9]} 41... Rb2 {[%clk
0:00:22.8]} 42. Qe4 {[%clk 0:00:35.2]} 42... Bxg3+ {[%clk 0:00:21.4]} 43. Rxg3
{[%clk 0:00:21.3]} 43... Rxc2+ {[%clk 0:00:20.6]} 44. Rg2 {[%clk 0:00:22]} 44...
Qe5+ {[%clk 0:00:13.6]} 45. Qxe5 {[%clk 0:00:21.4]} 45... Rxg2+ {[%clk
0:00:14.8]} 46. Kxg2 {[%clk 0:00:20.2]} 46... fxe5 {[%clk 0:00:16.7]} 47. Kf3
{[%clk 0:00:13.8]} 47... d5 {[%clk 0:00:18.6]} 48. Ke3 {[%clk 0:00:14.5]} 48...
Kf6 {[%clk 0:00:18.3]} 49. Kd3 {[%clk 0:00:15.3]} 49... Kf5 {[%clk 0:00:19.6]}
0-1

[Event "*** Titled Tuesday Blitz"]
[Site "Chess.com"]
[Date "2018.09.04"]
[Round "10"]
[White "GMWSO"]
[Black "wonderfultime"]
[Result "1-0"]
[WhiteElo "2964"]
[BlackElo "2839"]
[TimeControl "180+2"]
[EndTime "15:52:38 PDT"]
[Termination "GMWSO won by resignation"]

1. d4 {[%clk 0:03:01.4]} 1... Nf6 {[%clk 0:02:57.2]} 2. c4 {[%clk 0:03:01.1]}
2... e6 {[%clk 0:02:58.6]} 3. Nf3 {[%clk 0:03:02]} 3... Bb4+ {[%clk 0:02:59.6]}
4. Nbd2 {[%clk 0:03:02.6]} 4... O-O {[%clk 0:03:00]} 5. a3 {[%clk 0:03:03.3]}
5... Be7 {[%clk 0:03:01.1]} 6. e4 {[%clk 0:03:04.3]} 6... d6 {[%clk 0:03:02.6]}
7. Be2 {[%clk 0:03:01.4]} 7... c5 {[%clk 0:03:01.8]} 8. d5 {[%clk 0:03:01.6]}
8... e5 {[%clk 0:03:03.3]} 9. Qc2 {[%clk 0:02:59.9]} 9... Nbd7 {[%clk
0:03:00.9]} 10. Nb1 {[%clk 0:02:59.1]} 10... Ne8 {[%clk 0:02:55.1]} 11. Nc3
{[%clk 0:02:58.2]} 11... g6 {[%clk 0:02:56.5]} 12. h4 {[%clk 0:02:26.3]} 12...
Ng7 {[%clk 0:02:53.5]} 13. Bh6 {[%clk 0:02:27.3]} 13... Nf6 {[%clk 0:02:53.8]}
14. Nh2 {[%clk 0:02:18.8]} 14... Kh8 {[%clk 0:02:49]} 15. g3 {[%clk 0:02:11.1]}
15... Ng8 {[%clk 0:02:50]} 16. Bd2 {[%clk 0:02:11.2]} 16... h5 {[%clk
0:02:32.5]} 17. O-O-O {[%clk 0:02:09.6]} 17... f5 {[%clk 0:02:23.3]} 18. f3
{[%clk 0:02:08.8]} 18... Bd7 {[%clk 0:02:20.2]} 19. Rdg1 {[%clk 0:02:00.2]}
19... Qe8 {[%clk 0:02:12.7]} 20. g4 {[%clk 0:02:00]} 20... f4 {[%clk 0:02:09.9]}
21. Be1 {[%clk 0:01:55.3]} 21... a6 {[%clk 0:02:07.6]} 22. Rg2 {[%clk
0:01:50.5]} 22... Rf6 {[%clk 0:01:16.5]} 23. Rhg1 {[%clk 0:01:50.2]} 23... Bf8
{[%clk 0:01:17.1]} 24. gxh5 {[%clk 0:01:43.3]} 24... gxh5 {[%clk 0:01:17.8]} 25.
a4 {[%clk 0:01:23.7]} 25... Ne7 {[%clk 0:01:07]} 26. Rg5 {[%clk 0:01:17.6]}
26... Rg6 {[%clk 0:01:06.6]} 27. Bf1 {[%clk 0:01:14.8]} 27... Rxg5 {[%clk
0:01:07.3]} 28. Rxg5 {[%clk 0:01:16.7]} 28... Ng6 {[%clk 0:01:04.9]} 29. Rg1
{[%clk 0:01:12.8]} 29... Be7 {[%clk 0:01:05.3]} 30. a5 {[%clk 0:01:04]} 30...
Kh7 {[%clk 0:01:05.9]} 31. Qg2 {[%clk 0:00:55.7]} 31... Qf7 {[%clk 0:01:03.4]}
32. Qc2 {[%clk 0:00:52.2]} 32... Rg8 {[%clk 0:00:48.8]} 33. Qb3 {[%clk
0:00:49.3]} 33... Bc8 {[%clk 0:00:50]} 34. Na4 {[%clk 0:00:50]} 34... Nxh4
{[%clk 0:00:47.1]} 35. Nb6 {[%clk 0:00:49.6]} 35... Bf6 {[%clk 0:00:41.3]} 36.
Nxc8 {[%clk 0:00:46.9]} 36... Rxc8 {[%clk 0:00:43.2]} 37. Bh3 {[%clk 0:00:48.2]}
37... Rf8 {[%clk 0:00:36.2]} 38. Qb6 {[%clk 0:00:46.8]} 38... Qe7 {[%clk
0:00:34.2]} 39. b4 {[%clk 0:00:39]} 39... cxb4 {[%clk 0:00:35.3]} 40. Bxb4
{[%clk 0:00:40.9]} 40... Rd8 {[%clk 0:00:26.4]} 41. c5 {[%clk 0:00:40.8]} 41...
Ne8 {[%clk 0:00:22.1]} 42. cxd6 {[%clk 0:00:30.3]} 42... Nxd6 {[%clk 0:00:23.1]}
43. Kd1 {[%clk 0:00:30]} 43... Kh8 {[%clk 0:00:21.4]} 44. Ke2 {[%clk 0:00:30.7]}
44... Bg7 {[%clk 0:00:18.7]} 45. Rc1 {[%clk 0:00:25.2]} 45... Bf8 {[%clk
0:00:18.4]} 46. Rg1 {[%clk 0:00:20.3]} 46... Qf6 {[%clk 0:00:17]} 47. Be6 {[%clk
0:00:14.3]} 47... Ng6 {[%clk 0:00:13.4]} 48. Rxg6 {[%clk 0:00:09.7]} 48... Qxg6
{[%clk 0:00:12.9]} 49. Qxd8 {[%clk 0:00:11.2]} 49... Qg2+ {[%clk 0:00:14.2]} 50.
Kd3 {[%clk 0:00:12.8]} 50... Kg7 {[%clk 0:00:04.3]} 51. Bxd6 {[%clk 0:00:13.7]}
51... Bxd6 {[%clk 0:00:05.2]} 52. Qxd6 {[%clk 0:00:14.5]} 52... Qxh2 {[%clk
0:00:06.5]} 53. Qxe5+ {[%clk 0:00:15.6]} 1-0

[Event "*** Titled Tuesday Blitz"]
[Site "Chess.com"]
[Date "2018.09.04"]
[Round "10"]
[White "TastyFrenchFries"]
[Black "tsakos2731"]
[Result "1/2-1/2"]
[WhiteElo "2388"]
[BlackElo "2598"]
[TimeControl "180+2"]
[EndTime "15:52:52 PDT"]
[Termination "Game drawn by repetition"]

1. Na3 {[%clk 0:03:01.9]} 1... e5 {[%clk 0:02:57.3]} 2. Nc4 {[%clk 0:03:02]}
2... Nc6 {[%clk 0:02:49.6]} 3. e4 {[%clk 0:03:00.5]} 3... Nf6 {[%clk 0:02:48.3]}
4. Nf3 {[%clk 0:02:58.8]} 4... d5 {[%clk 0:02:44.5]} 5. exd5 {[%clk 0:02:56.2]}
5... Qxd5 {[%clk 0:02:45.1]} 6. Ne3 {[%clk 0:02:54.3]} 6... Qd8 {[%clk
0:02:43.2]} 7. Bb5 {[%clk 0:02:52.1]} 7... Bd6 {[%clk 0:02:41.6]} 8. O-O {[%clk
0:02:49.4]} 8... e4 {[%clk 0:02:40]} 9. Ne1 {[%clk 0:02:38.9]} 9... O-O {[%clk
0:02:38]} 10. d3 {[%clk 0:02:35.6]} 10... Nd4 {[%clk 0:02:34.7]} 11. Bc4 {[%clk
0:02:27.5]} 11... b5 {[%clk 0:02:33.6]} 12. Bb3 {[%clk 0:02:27.8]} 12... Bb7
{[%clk 0:02:30.5]} 13. c3 {[%clk 0:02:26.5]} 13... Nxb3 {[%clk 0:02:30.9]} 14.
axb3 {[%clk 0:02:26.6]} 14... c5 {[%clk 0:02:32.5]} 15. d4 {[%clk 0:02:18.6]}
15... cxd4 {[%clk 0:02:31.7]} 16. cxd4 {[%clk 0:02:19.1]} 16... g6 {[%clk
0:02:25.5]} 17. N1c2 {[%clk 0:02:17.2]} 17... Rc8 {[%clk 0:02:22.3]} 18. Rxa7
{[%clk 0:02:10.3]} 18... Qb6 {[%clk 0:02:23.1]} 19. Ra1 {[%clk 0:02:08.3]} 19...
Nd5 {[%clk 0:02:20.8]} 20. Nxd5 {[%clk 0:02:07.3]} 20... Bxd5 {[%clk 0:02:22.7]}
21. Ne3 {[%clk 0:02:07]} 21... Bb7 {[%clk 0:02:22.6]} 22. Bd2 {[%clk 0:02:01.2]}
22... f5 {[%clk 0:02:23.4]} 23. Ba5 {[%clk 0:01:57.1]} 23... Qc6 {[%clk
0:02:24.2]} 24. d5 {[%clk 0:01:56.6]} 24... Qd7 {[%clk 0:02:21]} 25. Bc3 {[%clk
0:01:55.5]} 25... b4 {[%clk 0:02:21.8]} 26. Bd4 {[%clk 0:01:54.9]} 26... Bb8
{[%clk 0:02:17.3]} 27. g3 {[%clk 0:01:52.8]} 27... Bxd5 {[%clk 0:02:15.4]} 28.
Bf6 {[%clk 0:01:46.2]} 28... Bc6 {[%clk 0:02:09.1]} 29. Qxd7 {[%clk 0:01:45.1]}
29... Bxd7 {[%clk 0:02:11]} 30. Bd4 {[%clk 0:01:39.9]} 30... Be6 {[%clk
0:02:07.4]} 31. Ra4 {[%clk 0:01:37.3]} 31... Bd6 {[%clk 0:02:08]} 32. Ra6 {[%clk
0:01:34.6]} 32... Rfd8 {[%clk 0:02:08.7]} 33. Bf6 {[%clk 0:01:32.7]} 33... Rd7
{[%clk 0:02:09.7]} 34. Rd1 {[%clk 0:01:31.4]} 34... Bf8 {[%clk 0:01:52.2]} 35.
Rxd7 {[%clk 0:01:22.2]} 35... Bxd7 {[%clk 0:01:54.1]} 36. Ra7 {[%clk 0:01:20.4]}
36... Be6 {[%clk 0:01:51.4]} 37. Be7 {[%clk 0:01:18.5]} 37... Bxe7 {[%clk
0:01:40.1]} 38. Rxe7 {[%clk 0:01:20.4]} 38... Bxb3 {[%clk 0:01:38.6]} 39. Rb7
{[%clk 0:01:20.3]} 39... Rc1+ {[%clk 0:01:31.2]} 40. Kg2 {[%clk 0:01:20.7]}
40... Bc4 {[%clk 0:01:30.2]} 41. Rxb4 {[%clk 0:01:15.3]} 41... Be2 {[%clk
0:01:31.1]} 42. Kh3 {[%clk 0:01:14]} 42... Kg7 {[%clk 0:01:30.4]} 43. Kh4 {[%clk
0:01:12.6]} 43... Kf6 {[%clk 0:01:21.3]} 44. Nd5+ {[%clk 0:01:11.5]} 44... Ke5
{[%clk 0:01:22.4]} 45. Nf4 {[%clk 0:01:11.3]} 45... Ba6 {[%clk 0:01:18.7]} 46.
Ra4 {[%clk 0:01:07.5]} 46... Bc4 {[%clk 0:01:19.4]} 47. Kg5 {[%clk 0:01:05.5]}
47... Rc2 {[%clk 0:01:20.6]} 48. h4 {[%clk 0:01:04.3]} 48... Bb3 {[%clk
0:01:13.8]} 49. Rb4 {[%clk 0:00:58.4]} 49... Bc4 {[%clk 0:01:10.2]} 50. b3
{[%clk 0:00:57.2]} 50... Bd3 {[%clk 0:01:08.1]} 51. Rb7 {[%clk 0:00:56.3]} 51...
Rxf2 {[%clk 0:01:08.7]} 52. Rxh7 {[%clk 0:00:54.9]} 52... Kd4 {[%clk 0:01:09.5]}
53. Rd7+ {[%clk 0:00:52.9]} 53... Kc3 {[%clk 0:01:07.8]} 54. b4 {[%clk
0:00:50.4]} 54... Rf3 {[%clk 0:01:01.5]} 55. Kxg6 {[%clk 0:00:49.4]} 55... Rxf4
{[%clk 0:01:02.1]} 56. gxf4 {[%clk 0:00:48.3]} 56... e3 {[%clk 0:01:01.7]} 57.
Rc7+ {[%clk 0:00:48.3]} 57... Kd2 {[%clk 0:00:56.7]} 58. Re7 {[%clk 0:00:47.9]}
58... Be4 {[%clk 0:00:56.3]} 59. Rd7+ {[%clk 0:00:46.6]} 59... Kc2 {[%clk
0:00:55.3]} 60. Rc7+ {[%clk 0:00:46]} 60... Kb2 {[%clk 0:00:54.7]} 61. Rd7
{[%clk 0:00:43.1]} 61... Kc1 {[%clk 0:00:54]} 62. Rc7+ {[%clk 0:00:42.7]} 62...
Kb2 {[%clk 0:00:51.2]} 63. Rd7 {[%clk 0:00:43.2]} 63... Bc2 {[%clk 0:00:43.6]}
64. Re7 {[%clk 0:00:41.6]} 64... Be4 {[%clk 0:00:44.6]} 65. Rd7 {[%clk
0:00:42.4]} 65... Kc2 {[%clk 0:00:45.7]} 66. Rc7+ {[%clk 0:00:42.9]} 66... Kb2
{[%clk 0:00:46.3]} 67. Rd7 {[%clk 0:00:43.2]} 67... Bc2 {[%clk 0:00:39.8]} 68.
Re7 {[%clk 0:00:42.5]} 68... Be4 {[%clk 0:00:40.7]} 69. Rd7 {[%clk 0:00:42.2]}
1/2-1/2